fUST/lending_fUST_20260429
["ID","MTS","AMOUNT","RATE_DAILY","PERIOD"]
[421319319,1777428643923,-152.0,0.00018482,7]
[421319320,1777428643932,-152.0,0.00018482,7]
[421319321,1777428643942,-152.0,0.00018482,7]
[421319322,1777428643952,-152.0,0.00018482,7]
[421319323,1777428643961,-152.0,0.00018482,7]
[421319324,1777428643971,-152.0,0.00018482,7]
[421319325,1777428643980,-152.0,0.00018482,7]
[421319326,1777428643990,-152.0,0.00018482,7]
[421319327,1777428643999,-152.0,0.00018482,7]
[421319328,1777428644009,-152.0,0.00018482,7]
[421319329,1777428644019,-152.0,0.00018482,7]
[421319330,1777428644028,-152.0,0.00018482,7]
[421319331,1777428644038,-578.20924308,0.000185,2]
[421319332,1777428644047,-229.34,0.00018533,2]
[421319333,1777428644056,-599.60298507,0.00018555,2]
[421319334,1777428644066,-621.78829552,0.0001861,2]
[421319335,1777428644076,-644.79446246,0.00018665,2]
[421319336,1777428644085,-1054.43232936,0.00018694,2]
[421319337,1777428644095,-668.65185757,0.0001872,2]
[421319338,1777428644104,-284.23,0.00018722,2]
[421319339,1777428644115,-693.3919763,0.00018775,2]
[421319340,1777428644124,-356.141867,0.00018794,7]
[421319341,1777428644135,-151.0,0.000188,2]
[421319342,1777428644144,-151.0,0.000188,2]
[421319343,1777428644154,-719.04747942,0.0001883,2]
[421319344,1777428644166,-745.65223616,0.00018885,2]
[421319345,1777428644178,-151.0,0.000189,2]
[421319346,1777428644189,-2183.59613557,0.00018938,2]
[421319347,1777428644199,-773.2413689,0.0001894,2]
[421319348,1777428644210,-288.75,0.00018953,2]
[421319349,1777428644220,-1000.0,0.00018955,2]
[421319350,1777428644230,-488.4966019,0.00018974,30]
[421319351,1777428644240,-1184.569127,0.00018974,2]
[421319352,1777428644249,-801.85129955,0.00018995,2]
[421319353,1777428644259,-227.92406782,0.00019,4]
[421319354,1777428644269,-151.0,0.00019,2]
[421319355,1777428644279,-24742.73656102,0.00019,2]
[421319356,1777428644288,-269.0,0.00019,2]
[421319357,1777428644298,-831.51979763,0.0001905,2]
[421319358,1777428644307,-156.765,0.00019066,2]
[421319359,1777428644317,-155.99088134,0.00019067,2]
[421319360,1777428644328,-500.0,0.00019067,2]
[421319361,1777428644338,-500.0,0.00019067,2]
[421319362,1777428644347,-500.0,0.00019067,2]
[421319363,1777428644358,-500.0,0.00019067,2]
[421319364,1777428644368,-500.0,0.00019067,2]
[421319365,1777428644378,-500.0,0.00019067,2]
[421319366,1777428644388,-500.0,0.00019067,2]
[421319367,1777428644398,-295.06753725,0.00019067,2]
[421319368,1777428644411,-204.93246275,0.00019067,2]
[421319369,1777428644420,-500.0,0.00019067,2]
[421319370,1777428644430,-500.0,0.00019067,2]
[421319371,1777428644439,-208.32778849,0.00019067,2]
[421319372,1777428644449,-500.0,0.00019067,2]
[421319373,1777428644458,-500.0,0.00019067,2]
[421319374,1777428644467,-480.12456534,0.00019067,2]
[421319375,1777428644477,-500.0,0.00019067,2]
[421319376,1777428644487,-500.0,0.00019067,2]
[421319377,1777428644496,-500.0,0.00019067,2]
[421319378,1777428644506,-500.0,0.00019067,2]
[421319379,1777428644515,-538.90670757,0.00019067,2]
[421319380,1777428644525,-500.0,0.00019067,2]
[421319381,1777428644535,-500.0,0.00019067,2]
[421319382,1777428644545,-500.0,0.00019067,2]
[421319383,1777428644555,-500.0,0.00019067,2]
[421319384,1777428644564,-500.0,0.00019067,2]
[421319385,1777428644574,-500.0,0.00019067,2]
[421319386,1777428644583,-500.0,0.00019067,2]
[421319387,1777428644592,-223.10489793,0.00019067,2]
[421319388,1777428644603,-200.26982674,0.00019067,2]
[421319389,1777428644613,-25.44874555,0.00019067,2]
[421319390,1777428644625,-140.89265099,0.00019067,2]
[421319391,1777428644634,-502.10090666,0.00019067,2]
[421319392,1777428644647,-20.89909334,0.00019067,2]
[421319393,1777428644656,-523.0,0.00019067,2]
[421319394,1777428644666,-73.34012456,0.00019067,2]
[421319398,1777428646865,-449.65987544,0.00019067,2]
[421319400,1777428646875,-523.0,0.00019067,2]
[421319402,1777428646884,-523.0,0.00019067,2]
[421319403,1777428646894,-523.0,0.00019067,2]
[421319404,1777428646904,-500.0,0.00019067,2]
[421319405,1777428646914,-523.0,0.00019067,2]
[421319406,1777428646924,-500.0,0.00019067,2]
[421319407,1777428646934,-523.0,0.00019067,2]
[421319408,1777428646944,-500.0,0.00019067,2]
[421319409,1777428646953,-500.0,0.00019067,2]
[421319410,1777428646963,-523.0,0.00019067,2]
[421319411,1777428646973,-500.0,0.00019067,2]
[421319412,1777428646983,-504.93568059,0.00019067,2]
[421319413,1777428646993,-523.0,0.00019067,2]
[421319414,1777428647003,-523.0,0.00019067,2]
[421319415,1777428647012,-523.0,0.00019067,2]
[421319416,1777428647022,-523.0,0.00019067,2]
[421319417,1777428647032,-523.0,0.00019067,2]
[421319418,1777428647042,-523.0,0.00019067,2]
[421319419,1777428647053,-523.0,0.00019067,2]
[421319420,1777428647063,-523.0,0.00019067,2]
[421319421,1777428647072,-523.0,0.00019067,2]
[421319422,1777428647082,-523.0,0.00019067,2]
[421319423,1777428647092,-523.0,0.00019067,2]
[421319424,1777428647101,-488.32478798,0.00019067,2]
[421319425,1777428647114,-34.67521202,0.00019067,2]
[421319426,1777428647123,-506.3572815,0.00019067,2]
[421319427,1777428647135,-16.6427185,0.00019067,2]
[421319428,1777428647145,-523.0,0.00019067,2]
[421319429,1777428647155,-540.3195354,0.00019067,2]
[421319430,1777428647165,-500.0,0.00019067,2]
[421319431,1777428647174,-500.0,0.00019067,2]
[421319432,1777428647184,-500.0,0.00019067,2]
[421319433,1777428647193,-500.0,0.00019067,2]
[421319434,1777428647203,-500.0,0.00019067,2]
[421319435,1777428647212,-500.0,0.00019067,2]
[421319436,1777428647222,-500.0,0.00019067,2]
[421319437,1777428647232,-500.0,0.00019067,2]
[421319438,1777428647241,-500.0,0.00019067,2]
[421319439,1777428647251,-500.0,0.00019067,2]
[421319440,1777428647261,-500.0,0.00019067,2]
[421319441,1777428647271,-286.0,0.00019067,2]
[421319442,1777428647281,-151.0,0.000191,2]
[421319443,1777428647290,-500.0,0.00019173,2]
[421319445,1777428647300,-500.0,0.00019173,2]
[421319446,1777428647311,-4166.66,0.00019178,2]
[421319447,1777428647320,-4166.66,0.00019178,2]
[421319448,1777428647330,-4166.66,0.00019178,2]
[421319449,1777428647340,-4166.66,0.00019178,2]
[421319450,1777428647350,-4166.66,0.00019178,2]
[421319451,1777428647360,-4166.66,0.00019178,2]
[421319452,1777428647369,-4166.66,0.00019178,2]
[421319453,1777428647381,-4166.66,0.00019178,2]
[421319454,1777428647391,-4166.66,0.00019178,2]
[421319455,1777428647401,-4166.66,0.00019178,2]
[421319456,1777428647412,-4166.66,0.00019178,2]
[421319457,1777428647423,-379.40999569,0.00019178,2]
[421319458,1777428647460,-3787.25000431,0.00019178,2]
[421319459,1777428647471,-4166.66,0.00019178,2]
[421319460,1777428647481,-1804.67130482,0.00019178,2]
[421319461,1777428647497,-637.00774766,0.00019178,2]
[421319509,1777429643129,-161.9,0.00013125,2]
[421319510,1777429643153,-603.0,0.00013125,2]
[421319511,1777429643178,-161.87955674,0.00013393,2]
[421319512,1777429769345,-62.94674023,0.00013393,2]
[421319513,1777429769371,-500.0,0.00013698,2]
[421319514,1777429769395,-1000.0,0.00013699,2]
[421319515,1777429769420,-1020.78,0.00013853,2]
[421319516,1777429769444,-23.07325977,0.00013959,2]
[421319531,1777429832604,-317.6952074,0.00013959,2]
[421319532,1777429832614,-180.34341588,0.00014432,2]
[421319533,1777429832624,-151.0,0.00014646,2]
[421319534,1777429832634,-198.39148778,0.00014844,2]
[421319535,1777429832643,-419.34440836,0.00017669,2]
[421319537,1777429832655,-3541.28686708,0.00017669,2]
[421319540,1777429832675,-2853.86318769,0.00017669,2]
[421319542,1777429832684,-177.32153132,0.000179,2]
[421319544,1777429832694,-192.21713226,0.00018,2]
[421319546,1777429832703,-166.66666667,0.00018,2]
[421319548,1777429832713,-192.46557155,0.00018,2]
[421319550,1777429832722,-160.0,0.00018078,2]
[421319552,1777429832732,-537.6845,0.00018079,2]
[421319553,1777429832742,-177.32153132,0.000181,2]
[421319555,1777429832751,-557.5788265,0.00018134,2]
[421319557,1777429832762,-578.20924308,0.00018189,2]
[421319559,1777429832771,-166.66666667,0.000182,2]
[421319561,1777429832780,-192.46557155,0.000182,2]
[421319563,1777429832790,-599.60298507,0.00018244,2]
[421319565,1777429832800,-372.51386775,0.00018299,2]
[421319568,1777429832812,-249.27442777,0.00018299,2]
[421319570,1777429832821,-148.64074794,0.000183,2]
[421319572,1777429832833,-28.68078338,0.000183,2]
[421319574,1777429832842,-276.98746462,0.00018354,2]
[421319645,1777429838914,-226.56977103,0.00014195,2]
[421319646,1777429838925,-267.35232982,0.00016195,2]
[421319647,1777429838935,-308.1348886,0.00018195,2]
[421319648,1777429838946,-367.80699784,0.00018354,2]
[421319649,1777429838956,-166.66666667,0.000184,2]
[421319650,1777429838965,-192.46557155,0.000184,2]
[421319651,1777429838975,-258.09081126,0.00018409,2]
[421319652,1777429838985,-192.46557155,0.000185,2]
[421319653,1777429838995,-300.0,0.00018802,2]
[421319654,1777429839004,-157.08728634,0.00018803,2]
[421319655,1777429839014,-500.0,0.00018803,2]
[421319656,1777429839023,-500.0,0.00018803,2]
[421319657,1777429839033,-500.0,0.00018803,2]
[421319658,1777429839042,-500.0,0.00018803,2]
[421319659,1777429839052,-500.0,0.00018803,2]
[421319660,1777429839062,-500.0,0.00018803,2]
[421319661,1777429839072,-500.0,0.00018803,2]
[421319662,1777429839081,-500.0,0.00018803,2]
[421319663,1777429839091,-500.0,0.00018803,2]
[421319664,1777429839101,-500.0,0.00018803,2]
[421319665,1777429839110,-500.0,0.00018803,2]
[421319666,1777429839119,-500.0,0.00018803,2]
[421319667,1777429839129,-500.0,0.00018803,2]
[421319668,1777429839139,-356.68058654,0.00018803,2]
[421319669,1777429839148,-236.961094,0.00018974,2]
[421319670,1777429839158,-500.0,0.00018977,2]
[421319671,1777429839167,-500.0,0.00018977,2]
[421319672,1777429839177,-500.0,0.00018977,2]
[421319673,1777429839186,-500.0,0.00018977,2]
[421319674,1777429839196,-500.0,0.00018977,2]
[421319675,1777429839206,-500.0,0.00018977,2]
[421319676,1777429839216,-500.0,0.00018977,2]
[421319677,1777429839225,-500.0,0.00018977,2]
[421319678,1777429839235,-500.0,0.00018977,2]
[421319679,1777429839245,-500.0,0.00018977,2]
[421319680,1777429839254,-500.0,0.00018977,2]
[421319681,1777429839264,-324.07401509,0.00018977,2]
[421319682,1777429839273,-500.0,0.00018977,2]
[421319683,1777429839282,-500.0,0.00018977,2]
[421319684,1777429839292,-500.0,0.00018977,2]
[421319685,1777429839302,-500.0,0.00018977,2]
[421319686,1777429839311,-500.0,0.00018977,2]
[421319687,1777429839321,-500.0,0.00018977,2]
[421319688,1777429839330,-500.0,0.00018977,2]
[421319689,1777429839339,-500.0,0.00018977,2]
[421319690,1777429839348,-500.0,0.00018977,2]
[421319691,1777429839358,-500.0,0.00018977,2]
[421319692,1777429839368,-500.0,0.00018977,2]
[421319693,1777429839377,-500.0,0.00018977,2]
[421319694,1777429839387,-396.8947808,0.00018977,2]
[421319695,1777429839396,-500.0,0.00018977,2]
[421319696,1777429839406,-500.0,0.00018977,2]
[421319697,1777429839416,-500.0,0.00018977,2]
[421319698,1777429839426,-500.0,0.00018977,2]
[421319699,1777429839437,-500.0,0.00018977,2]
[421319700,1777429839446,-133.97493233,0.00018977,2]
[421319701,1777429839459,-366.02506767,0.00018977,2]
[421319702,1777429839469,-500.0,0.00018977,2]
[421319703,1777429839479,-500.0,0.00018977,2]
[421319704,1777429839488,-500.0,0.00018977,2]
[421319705,1777429839498,-500.0,0.00018977,2]
[421319706,1777429839508,-309.11996158,0.00018977,2]
[421319707,1777429839518,-500.0,0.00018977,2]
[421319708,1777429839528,-16.58473543,0.00018977,2]
[421319709,1777429839694,-102.9755063,0.00018977,2]
[421319710,1777429839706,-380.43975827,0.00018977,2]
[421319711,1777429839716,-4993.48175089,0.00018978,2]
[421319712,1777429839731,-383696.85355453,0.00018978,2]
[421319744,1777429923819,1000.0,0.00013699,2]
[421319822,1777430841094,-736.3359,0.00013562,2]
[421319823,1777430945084,-3669.44145952,0.00013426,2]
[421319824,1777430945106,-566.0,0.00013426,2]
[421319825,1777430945128,-210.52863124,0.00013631,2]
[421319826,1777430945149,-893.02784456,0.00013699,2]
[421319853,1777431032179,-106.97215544,0.00013699,2]
[421319856,1777431032192,-248.42378486,0.00015631,2]
[421319858,1777431032203,-163.30856935,0.00016763,2]
[421319860,1777431032214,-161.56479847,0.00016822,3]
[421319862,1777431032225,-245.06700684,0.00017156,2]
[421319864,1777431032240,-54.93299316,0.00017156,2]
[421319867,1777431032251,-300.0,0.00017156,2]
[421319868,1777431032262,-300.0,0.00017156,2]
[421319870,1777431032273,-1200.0,0.00017156,2]
[421319872,1777431032285,-300.0,0.00017156,2]
[421319874,1777431032296,-300.0,0.00017157,2]
[421319876,1777431032308,-126.43139933,0.00017157,2]
[421319877,1777431032322,-173.56860067,0.00017157,2]
[421319878,1777431032333,-300.0,0.00017157,2]
[421319879,1777431032344,-300.0,0.00017157,2]
[421319880,1777431032356,-300.0,0.00017157,2]
[421319881,1777431032367,-251.58438889,0.00017157,2]
[421319912,1777431039818,-526.04679816,0.00013637,2]
[421319914,1777431039828,-48.41561111,0.00017157,2]
[421319916,1777431039838,-300.0,0.00017157,2]
[421319918,1777431039848,-300.0,0.00017157,2]
[421319920,1777431039859,-300.0,0.00017157,2]
[421319922,1777431039869,-160.2132228,0.00017157,2]
[421319924,1777431039881,-139.7867772,0.00017157,2]
[421319927,1777431039892,-300.0,0.00017157,2]
[421319929,1777431039902,-300.0,0.00017157,2]
[421319931,1777431039912,-300.0,0.00017157,2]
[421319933,1777431039922,-300.0,0.00017157,2]
[421319935,1777431039932,-300.0,0.00017157,2]
[421319937,1777431039943,-170.52667411,0.00017281,2]
[421319939,1777431039954,-286.31893849,0.00017631,2]
[421319941,1777431039964,-352.48711298,0.00018678,2]
[421319943,1777431039974,-420.0,0.00018735,2]
[421319945,1777431039985,-500.0,0.00018777,2]
[421319947,1777431039995,-321.87719787,0.00018777,2]
[421319949,1777431040005,-589.90221795,0.00018777,2]
[421319952,1777431040016,-314.39525556,0.00018777,2]
[421319954,1777431040026,-500.0,0.00018777,2]
[421319956,1777431040036,-500.0,0.00018777,2]
[421319958,1777431040046,-330.86691957,0.00018777,2]
[421319960,1777431040056,-500.0,0.00018777,2]
[421319962,1777431040067,-500.0,0.00018777,2]
[421319964,1777431040078,-500.0,0.00018777,2]
[421319966,1777431040088,-500.0,0.00018777,2]
[421319968,1777431040097,-500.0,0.00018777,2]
[421319970,1777431040108,-11088.61247206,0.00018778,2]
[421319973,1777431040125,-580.46239662,0.00018778,2]
[421319975,1777431040138,-356757.26817562,0.00018778,2]
[421319977,1777431040149,-21960.80476325,0.00018778,2]
[421319979,1777431040160,-537.6845,0.0001879,2]
[421319982,1777431040170,-2150.738,0.0001879,2]
[421319984,1777431040181,-531.34288994,0.000188,30]
[421319986,1777431040191,-500.0,0.000188,2]
[421319988,1777431040201,-514.02398962,0.00018802,2]
[421319990,1777431040212,-500.0,0.00018802,2]
[421319992,1777431040221,-500.0,0.00018802,2]
[421319994,1777431040232,-1195.5,0.00018802,2]
[421319996,1777431040242,-500.0,0.00018802,2]
[421319998,1777431040252,-500.0,0.00018802,2]
[421320000,1777431040262,-243.58394529,0.00018803,2]
[421320002,1777431040273,-160.0,0.00018821,2]
[421320004,1777431040284,-1223.0,0.00018828,2]
[421320006,1777431040294,-557.5788265,0.00018845,2]
[421320008,1777431040304,-500.0,0.00018858,2]
[421320010,1777431040314,-500.0,0.00018858,2]
[421320012,1777431040324,-500.0,0.00018858,2]
[421320013,1777431040335,-671.61,0.00018858,2]
[421320014,1777431040345,-220191.2531012,0.00018877,2]
[421320015,1777431040355,-297.025,0.00018877,2]
[421320016,1777431040365,-500.0,0.00018877,2]
[421320017,1777431040376,-539.332589,0.00018877,2]
[421320018,1777431040386,-500.0,0.00018877,2]
[421320019,1777431040397,-504.84508127,0.00018877,2]
[421320020,1777431040409,-500.0,0.00018877,2]
[421320021,1777431040420,-506.08547616,0.00018877,2]
[421320022,1777431040430,-500.0,0.00018877,2]
[421320023,1777431040440,-500.0,0.00018877,2]
[421320032,1777431040730,-228.6,0.00018877,2]
[421320033,1777431040745,-671.61,0.00018877,2]
[421320034,1777431040757,-671.61,0.00018877,2]
[421320035,1777431040769,-671.61,0.00018877,2]
[421320036,1777431040781,-671.61,0.00018877,2]
[421320037,1777431040793,-671.61,0.00018877,2]
[421320038,1777431040803,-671.61,0.00018877,2]
[421320039,1777431040814,-187.899,0.00018877,2]
[421320040,1777431040827,-152.0,0.00018883,7]
[421320041,1777431040839,-578.20924308,0.000189,2]
[421320042,1777431040849,-152.0,0.00018912,7]
[421320043,1777431040860,-152.0,0.0001893,7]
[421320044,1777431040872,-152.0,0.0001893,7]
[421320045,1777431040884,-599.60298507,0.00018955,2]
[421320046,1777431040895,-387.55219778,0.00018966,2]
[421320047,1777431040907,-578.20924308,0.00018966,2]
[421320048,1777431040918,-1880.2820167,0.00018967,2]
[421320049,1777431040929,-500.29747505,0.00018973,2]
[421320050,1777431040939,-554.89576359,0.00018973,2]
[421320051,1777431040950,-500.0,0.00018977,2]
[421320052,1777431040960,-500.0,0.00018977,2]
[421320053,1777431040971,-285.6892434,0.00018977,2]
[421320054,1777431040981,-596.14208202,0.00018977,2]
[421320055,1777431040990,-1195.5,0.00018977,2]
[421320056,1777431041001,-1195.5,0.00018977,2]
[421320057,1777431041011,-1195.5,0.00018977,2]
[421320058,1777431041021,-1195.5,0.00018977,2]
[421320059,1777431041031,-1195.5,0.00018977,2]
[421320060,1777431041041,-1195.5,0.00018977,2]
[421320061,1777431041051,-1195.5,0.00018977,2]
[421320062,1777431041061,-1195.5,0.00018977,2]
[421320063,1777431041072,-1195.5,0.00018977,2]
[421320064,1777431041082,-1195.5,0.00018977,2]
[421320065,1777431041093,-1195.5,0.00018977,2]
[421320066,1777431041104,-1195.5,0.00018977,2]
[421320067,1777431041114,-1195.5,0.00018977,2]
[421320068,1777431041125,-1195.5,0.00018977,2]
[421320069,1777431041136,-1195.5,0.00018977,2]
[421320070,1777431041146,-1195.5,0.00018977,2]
[421320071,1777431041156,-1195.5,0.00018977,2]
[421320072,1777431041171,-1195.5,0.00018977,2]
[421320073,1777431041181,-1195.5,0.00018977,2]
[421320074,1777431041191,-1195.5,0.00018977,2]
[421320075,1777431041201,-1195.5,0.00018977,2]
[421320076,1777431041212,-1195.5,0.00018977,2]
[421320077,1777431041222,-1195.71258252,0.00018977,2]
[421320078,1777431041233,-511.36,0.00018977,2]
[421320079,1777431041243,-511.36,0.00018977,2]
[421320080,1777431041254,-511.36,0.00018977,2]
[421320081,1777431041264,-511.36,0.00018977,2]
[421320082,1777431041274,-511.36,0.00018977,2]
[421320083,1777431041285,-511.36,0.00018977,2]
[421320084,1777431041296,-511.36,0.00018977,2]
[421320085,1777431041306,-511.36,0.00018977,2]
[421320086,1777431041317,-511.36,0.00018977,2]
[421320087,1777431041328,-511.36,0.00018977,2]
[421320088,1777431041339,-511.36,0.00018977,2]
[421320089,1777431041350,-511.36,0.00018977,2]
[421320090,1777431041361,-511.36,0.00018977,2]
[421320091,1777431041371,-511.36,0.00018977,2]
[421320092,1777431041381,-511.36,0.00018977,2]
[421320093,1777431041391,-511.36,0.00018977,2]
[421320094,1777431041402,-511.36,0.00018977,2]
[421320095,1777431041412,-511.36,0.00018977,2]
[421320096,1777431041422,-511.36,0.00018977,2]
[421320097,1777431041432,-511.36,0.00018977,2]
[421320098,1777431041443,-511.36,0.00018977,2]
[421320099,1777431041453,-511.36,0.00018977,2]
[421320100,1777431041463,-511.36,0.00018977,2]
[421320101,1777431041473,-511.55892216,0.00018977,2]
[421320102,1777431041483,-500.0,0.00018977,2]
[421320103,1777431041494,-500.0,0.00018977,2]
[421320104,1777431041504,-500.0,0.00018977,2]
[421320105,1777431041515,-500.0,0.00018977,2]
[421320106,1777431041525,-500.0,0.00018977,2]
[421320107,1777431041536,-500.0,0.00018977,2]
[421320108,1777431041546,-275.37281287,0.00018977,2]
[421320109,1777431041557,-500.0,0.00018977,2]
[421320110,1777431041567,-500.0,0.00018977,2]
[421320111,1777431041577,-500.0,0.00018977,2]
[421320112,1777431041587,-500.0,0.00018977,2]
[421320113,1777431041598,-500.0,0.00018977,2]
[421320114,1777431041608,-500.0,0.00018977,2]
[421320115,1777431041618,-500.0,0.00018977,2]
[421320116,1777431041629,-500.0,0.00018977,2]
[421320117,1777431041639,-500.0,0.00018977,2]
[421320118,1777431041650,-500.0,0.00018977,2]
[421320119,1777431041661,-500.0,0.00018977,2]
[421320120,1777431041671,-500.0,0.00018977,2]
[421320121,1777431041682,-500.0,0.00018977,2]
[421320122,1777431041692,-500.0,0.00018977,2]
[421320123,1777431041702,-500.0,0.00018977,2]
[421320124,1777431041713,-500.0,0.00018977,2]
[421320125,1777431041725,-500.0,0.00018977,2]
[421320126,1777431041735,-500.0,0.00018977,2]
[421320127,1777431041746,-500.0,0.00018977,2]
[421320128,1777431041758,-500.0,0.00018977,2]
[421320129,1777431041770,-500.0,0.00018977,2]
[421320130,1777431041781,-353.97200139,0.00018977,2]
[421320131,1777431041791,-500.0,0.00018977,2]
[421320132,1777431041802,-500.0,0.00018977,2]
[421320133,1777431041813,-576.013326,0.00018977,2]
[421320134,1777431041824,-376.69277985,0.00018977,2]
[421320135,1777431041837,-414.643208,0.00018977,2]
[421320136,1777431041848,-414.643208,0.00018977,2]
[421320137,1777431041859,-414.643208,0.00018977,2]
[421320138,1777431041869,-414.643208,0.00018977,2]
[421320139,1777431041879,-890.093883,0.00018977,2]
[421320140,1777431041890,-890.093883,0.00018977,2]
[421320141,1777431041900,-890.093883,0.00018977,2]
[421320142,1777431041911,-890.093883,0.00018977,2]
[421320143,1777431041922,-555.346426,0.00018977,2]
[421320144,1777431041933,-555.346426,0.00018977,2]
[421320145,1777431041945,-555.346426,0.00018977,2]
[421320146,1777431041956,-555.346426,0.00018977,2]
[421320147,1777431041966,-151.0,0.00018977,2]
[421320148,1777431041978,-151.0,0.00018977,2]
[421320149,1777431041990,-151.0,0.00018977,2]
[421320150,1777431042001,-167.809237,0.00018977,2]
[421320151,1777431042011,-151.0,0.00018977,2]
[421320152,1777431042021,-527.473983,0.00018977,2]
[421320153,1777431042031,-527.473983,0.00018977,2]
[421320154,1777431042041,-527.473983,0.00018977,2]
[421320155,1777431042052,-527.473983,0.00018977,2]
[421320156,1777431042063,-279.536107,0.00018977,2]
[421320157,1777431042073,-279.536107,0.00018977,2]
[421320158,1777431042085,-279.536107,0.00018977,2]
[421320159,1777431042095,-279.536107,0.00018977,2]
[421320160,1777431042107,-663.923322,0.00018977,2]
[421320161,1777431042117,-663.923322,0.00018977,2]
[421320162,1777431042128,-663.923322,0.00018977,2]
[421320163,1777431042139,-663.923322,0.00018977,2]
[421320164,1777431042151,-315.380961,0.00018977,2]
[421320165,1777431042162,-315.380961,0.00018977,2]
[421320166,1777431042173,-315.380961,0.00018977,2]
[421320167,1777431042184,-315.380961,0.00018977,2]
[421320168,1777431042194,-170.621158,0.00018977,2]
[421320169,1777431042205,-151.0,0.00018978,2]
[421320170,1777431042215,-1000.0,0.00018978,2]
[421320171,1777431042225,-1000.0,0.00018978,2]
[421320172,1777431042236,-1000.0,0.00018978,2]
[421320173,1777431042246,-1000.0,0.00018978,2]
[421320174,1777431042257,-1000.0,0.00018978,2]
[421320175,1777431042268,-1000.0,0.00018978,2]
[421320176,1777431042279,-1000.0,0.00018978,2]
[421320178,1777431042289,-1000.0,0.00018978,2]
[421320179,1777431042300,-1000.0,0.00018978,2]
[421320180,1777431042311,-1000.0,0.00018978,2]
[421320181,1777431042321,-1000.0,0.00018978,2]
[421320182,1777431042331,-1000.0,0.00018978,2]
[421320183,1777431042342,-1000.0,0.00018978,2]
[421320184,1777431042352,-761.28113076,0.00018978,2]
[421320185,1777431042363,-151.0,0.00018978,2]
[421320186,1777431042374,-151.0,0.00018978,2]
[421320187,1777431042385,-465.105616,0.00018978,2]
[421320188,1777431042395,-465.105616,0.00018978,2]
[421320189,1777431042406,-465.105616,0.00018978,2]
[421320190,1777431042417,-465.105616,0.00018978,2]
[421320191,1777431042427,-151.0,0.00018978,2]
[421320192,1777431042439,-151.0,0.00018978,2]
[421320193,1777431042450,-151.0,0.00018978,2]
[421320194,1777431042460,-151.39515132,0.00018978,2]
[421320195,1777431042471,-500.0,0.00018978,2]
[421320196,1777431042482,-216.0,0.0001898,2]
[421320197,1777431042493,-649.0,0.00018985,2]
[421320198,1777431042503,-156.0,0.00018985,2]
[421320199,1777431042514,-156.0,0.00018985,2]
[421320200,1777431042525,-153.58345508,0.00018985,2]
[421320201,1777431042536,-3197.27481611,0.00019,120]
[421320202,1777431042546,-612.9484825,0.0001901,2]
[421320203,1777431042557,-250.147278,0.00019032,2]
[421320204,1777431042567,-527.473983,0.00019032,2]
[421320205,1777431042577,-527.473983,0.00019032,2]
[421320206,1777431042588,-527.473983,0.00019032,2]
[421320207,1777431042598,-527.473983,0.00019032,2]
[421320208,1777431042608,-279.536107,0.00019032,2]
[421320209,1777431042618,-279.536107,0.00019032,2]
[421320210,1777431042629,-279.536107,0.00019032,2]
[421320211,1777431042640,-279.536107,0.00019032,2]
[421320212,1777431042651,-169.65398758,0.00019073,2]